bitfinex-derivatives/quotes_BTCF0:USTF0_20250324
["timestamp","ask_amount","ask_price","bid_price","bid_amount"]
[1742791167813,0.83213405,86752.0,86751.0,0.00046109]
[1742791168113,0.73213405,86752.0,86751.0,0.00046109]
[1742791170418,0.73213405,86752.0,86735.0,0.00046117]
[1742791170419,0.87686525,86752.0,86735.0,0.00046117]
[1742791170622,0.83689,86736.0,86735.0,0.03216117]
[1742791170915,0.96473001,86736.0,86735.0,0.03216117]
[1742791171419,1.08000179,86736.0,86735.0,0.03216117]
[1742791171922,1.08000179,86736.0,86735.0,0.03416117]
[1742791173319,1.11300179,86736.0,86735.0,0.03416117]
[1742791173817,1.22300179,86736.0,86735.0,0.03416117]
[1742791174017,1.11300179,86736.0,86735.0,0.03416117]
[1742791174319,1.11600179,86736.0,86735.0,0.03216117]
[1742791174616,1.11800179,86736.0,86735.0,0.03216117]
[1742791176819,1.36800179,86736.0,86735.0,0.03216117]
[1742791177023,1.11800179,86736.0,86735.0,0.03216117]
[1742791177723,0.1153073,86723.0,86722.0,0.0327]
[1742791177924,0.6022673,86723.0,86722.0,0.0333]
[1742791178125,0.60286731,86723.0,86722.0,0.0327]
[1742791178425,0.61241213,86723.0,86722.0,0.0327]
[1742791180921,0.1153113,86720.0,86719.0,0.00046126]
[1742791181224,0.11591131,86720.0,86719.0,0.00046126]
[1742791181521,0.12472282,86720.0,86719.0,0.00046126]
[1742791181722,0.24003713,86720.0,86719.0,0.00046126]
[1742791182023,0.24003713,86720.0,86719.0,0.01322521]
[1742791182228,0.24003713,86720.0,86719.0,0.00046126]
[1742791184323,0.24003713,86720.0,86719.0,0.01322083]
[1742791186620,0.1153206,86713.0,86712.0,0.0626]
[1742791186930,0.60176061,86713.0,86712.0,0.0632]
[1742791187224,0.60176061,86713.0,86712.0,0.07834098]
[1742791187530,0.71707492,86713.0,86712.0,0.0632]
[1742791187731,0.71707492,86713.0,86712.0,0.0626]
[1742791188117,0.71707492,86713.0,86712.0,0.0646]
[1742791188925,0.71707492,86713.0,86712.0,0.07974157]
[1742791189628,0.71707492,86713.0,86712.0,0.0646]
[1742791190634,0.74907492,86713.0,86712.0,0.0646]
[1742791191427,0.78227492,86713.0,86712.0,0.0342]
[1742791191622,0.1153246,86710.0,86709.0,0.0303]
[1742791191929,0.11592461,86710.0,86709.0,0.0303]
[1742791192325,0.23124823,86710.0,86709.0,0.0303]
[1742791192525,0.26164823,86710.0,86709.0,0.0303]
[1742791193235,0.26164823,86710.0,86709.0,0.0323]
[1742791195833,0.62244823,86710.0,86709.0,0.0323]
[1742791197831,0.1153299,86706.0,86705.0,0.0321]
[1742791198131,0.1153299,86706.0,86705.0,0.03278]
[1742791198132,0.2395299,86706.0,86705.0,0.03278]
[1742791198338,0.2395299,86706.0,86705.0,0.1481112]
[1742791198537,0.35485751,86706.0,86705.0,0.1481112]
[1742791199130,0.38815751,86706.0,86705.0,0.1785112]
[1742791199439,0.38815751,86706.0,86705.0,0.06318]
[1742791199937,0.38815751,86706.0,86705.0,0.06518]
[1742791200440,0.38815751,86706.0,86705.0,0.1805112]
[1742791200639,0.14926761,86706.0,86705.0,0.1805112]
[1742791200940,0.35457751,86706.0,86705.0,0.1805112]
[1742791201139,0.23229751,86706.0,86705.0,0.1805112]
[1742791201333,0.2404499,86706.0,86705.0,0.1805112]
[1742791201535,0.2404499,86706.0,86705.0,0.19327991]
[1742791201835,0.2404099,86706.0,86705.0,0.19327991]
[1742791202036,0.00164,86706.0,86705.0,0.19327991]
[1742791203336,0.3608,86729.0,86712.0,0.1153219]
[1742791203539,0.36164,86713.0,86712.0,0.12885061]
[1742791204441,0.36164,86713.0,86712.0,0.19395061]
[1742791204944,0.36164,86713.0,86712.0,0.19495061]
[1742791206642,0.36164,86713.0,86712.0,0.1821819]
[1742791208545,0.36164,86713.0,86712.0,0.2221639]
[1742791210140,0.36164,86713.0,86712.0,0.23827412]
[1742791210339,0.36164,86713.0,86712.0,0.23818205]
[1742791211150,0.4769606,86713.0,86712.0,0.106842]
[1742791211448,0.59228422,86713.0,86712.0,0.08223769]
[1742791211840,0.65528422,86713.0,86712.0,0.08223769]
[1742791212043,0.65528422,86713.0,86712.0,0.08147769]
[1742791212242,0.65528422,86713.0,86712.0,0.08227769]
[1742791213651,0.65528422,86713.0,86712.0,0.09504942]
[1742791214047,0.65528422,86713.0,86712.0,0.06204942]
[1742791214444,0.66491985,86713.0,86712.0,0.06280942]
[1742791214654,0.66491985,86713.0,86712.0,0.09474942]
[1742791215342,0.66491985,86713.0,86712.0,0.21083132]
[1742791215738,0.66491985,86713.0,86712.0,0.19805959]
[1742791215946,0.66491985,86713.0,86712.0,0.08273769]
[1742791216247,0.66491985,86713.0,86712.0,0.08197769]
[1742791216651,0.66491985,86713.0,86712.0,0.01637769]
[1742791218139,0.66491985,86713.0,86712.0,0.01713769]
[1742791218347,0.66491985,86713.0,86712.0,0.01637769]
[1742791218543,0.53996362,86713.0,86712.0,0.01637769]
[1742791218748,0.0001729,86721.0,86717.0,0.0576575]
[1742791218951,0.0001729,86721.0,86720.0,0.1153113]
[1742791219154,0.0001729,86721.0,86720.0,0.1163913]
[1742791219654,0.00121291,86721.0,86720.0,0.1824913]
[1742791219851,0.11652291,86721.0,86720.0,0.10693549]
[1742791220157,0.11652291,86721.0,86720.0,0.07393549]
[1742791220356,0.17732291,86721.0,86720.0,0.07393549]
[1742791221749,0.17732291,86721.0,86720.0,0.07493549]
[1742791221957,0.17832291,86721.0,86720.0,0.07493549]
[1742791222455,0.17832291,86721.0,86720.0,0.05055769]
[1742791222855,0.53912291,86721.0,86720.0,0.05055769]
[1742791223057,0.53912291,86721.0,86720.0,0.04947769]
[1742791223258,0.17832589,86721.0,86720.0,0.13280899]
[1742791223459,0.00221291,86721.0,86720.0,0.15712661]
[1742791223649,1e-08,86722.0,86721.0,0.11531]
[1742791223955,1e-08,86722.0,86721.0,0.13223952]
[1742791224258,0.1153,86729.0,86728.0,0.0576497]
[1742791224454,0.18667954,86734.0,86733.0,0.115294]
[1742791224657,0.06394001,86734.0,86733.0,0.116334]
[1742791224959,0.00104001,86734.0,86733.0,0.15610931]
[1742791225153,0.00104001,86734.0,86733.0,0.21780931]
[1742791225747,0.00304001,86734.0,86733.0,0.21780931]
[1742791226257,0.00704001,86734.0,86733.0,0.21780931]
[1742791228659,0.000173,86742.0,86741.0,0.1152834]
[1742791229063,0.00157301,86742.0,86741.0,0.13206109]
[1742791229550,0.00157301,86742.0,86741.0,0.19466109]
[1742791229759,0.00657301,86742.0,86741.0,0.19566109]
[1742791229954,0.03697301,86742.0,86741.0,0.19566109]
[1742791231060,0.04097301,86742.0,86741.0,0.19566109]
[1742791231663,0.04097301,86742.0,86741.0,0.1802834]
[1742791232550,0.04097301,86742.0,86741.0,0.19558287]
[1742791233152,0.071973,86742.0,86741.0,0.22005571]
[1742791233354,0.07337301,86742.0,86741.0,0.22005571]
[1742791234170,0.07337301,86742.0,86741.0,0.19558287]
[1742791234557,0.18865511,86742.0,86741.0,0.19558287]
[1742791234759,0.07337301,86742.0,86741.0,0.19558287]
[1742791235154,0.01057301,86742.0,86741.0,0.19558287]
[1742791235467,0.00988057,86747.0,86746.0,0.1152767]
[1742791235770,8e-05,86749.0,86748.0,0.1152741]
[1742791235964,8e-05,86749.0,86748.0,0.4779141]
[1742791236159,0.0627,86753.0,86752.0,0.1152688]
[1742791236461,0.0627,86753.0,86752.0,0.1171088]
[1742791236668,0.07256792,86753.0,86752.0,0.1171088]
[1742791237166,0.07256792,86753.0,86752.0,0.1797088]
[1742791237353,0.0627,86753.0,86752.0,0.1797088]
[1742791238065,0.0677,86753.0,86752.0,0.1807088]
[1742791238660,0.005,86753.0,86752.0,0.1807088]
[1742791238855,0.1152635,86756.0,86754.0,0.1152661]
[1742791238856,0.1152649,86755.0,86754.0,0.1152661]
[1742791239061,0.12521471,86755.0,86754.0,0.1170261]
[1742791239261,0.18861471,86755.0,86754.0,0.1170261]
[1742791239869,0.54941471,86755.0,86754.0,0.1170261]
[1742791241372,0.55441471,86755.0,86754.0,0.1180261]
[1742791241570,0.55441471,86755.0,86754.0,0.00276]
[1742791241762,0.55441471,86755.0,86754.0,0.1180261]
[1742791243168,0.55441471,86755.0,86754.0,0.00276]
[1742791243468,0.55441471,86755.0,86744.0,0.000173]
[1742791243469,0.1152781,86745.0,86744.0,0.000173]
[1742791243674,0.115298,86730.0,86728.0,0.0576499]
[1742791243862,0.115298,86730.0,86729.0,0.4778588]
[1742791244063,0.115298,86730.0,86729.0,0.13221007]
[1742791244572,0.180698,86730.0,86729.0,0.13221007]
[1742791245374,0.180698,86730.0,86729.0,0.1170588]
[1742791245673,0.180698,86730.0,86729.0,0.1180588]
[1742791246075,0.180698,86730.0,86729.0,0.00276]
[1742791246282,0.180698,86730.0,86729.0,0.1162993]
[1742791247181,0.180698,86730.0,86729.0,0.13151745]
[1742791247881,0.180698,86730.0,86729.0,0.1162993]
[1742791248182,0.180698,86730.0,86729.0,0.001]
[1742791248976,0.180698,86730.0,86721.0,0.000173]
[1742791248977,0.1153086,86722.0,86721.0,0.000173]
[1742791249582,0.1760086,86722.0,86721.0,0.000173]
[1742791250374,0.1729885,86711.0,86710.0,0.1153246]
[1742791250579,0.1153215,86713.0,86711.0,0.057661]
[1742791250785,0.12539594,86713.0,86712.0,0.1153206]
[1742791250985,0.12539594,86713.0,86712.0,0.1170806]
[1742791251683,0.1153215,86713.0,86712.0,0.1170806]
[1742791251995,0.1153215,86713.0,86712.0,0.1190806]
[1742791252292,0.1153215,86713.0,86712.0,0.1240806]
[1742791252493,0.1153215,86713.0,86712.0,0.00876]
[1742791253081,0.3919,86714.0,86712.0,0.1240819]
[1742791253281,0.0576528,86725.0,86712.0,0.1240819]
[1742791253282,0.3608,86733.0,86719.0,0.1153113]
[1742791253486,0.12028,86726.0,86720.0,0.1153113]
[1742791253689,0.12028,86726.0,86720.0,0.1784713]
[1742791253690,0.235584,86726.0,86720.0,0.1784713]
[1742791253991,0.1153065,86724.0,86720.0,0.1784713]
[1742791254193,0.115483,86721.0,86720.0,0.19360041]
[1742791254784,0.115483,86721.0,86720.0,0.1784713]
[1742791255086,0.115483,86721.0,86720.0,0.1170713]
[1742791255392,0.115483,86721.0,86720.0,0.00176]
[1742791255697,0.1153206,86713.0,86712.0,0.005]
[1742791255989,0.1153206,86713.0,86712.0,0.00684]
[1742791256385,0.1153206,86713.0,86712.0,0.1221619]
[1742791256791,0.1153206,86713.0,86712.0,0.13726666]
[1742791257092,0.1153206,86713.0,86712.0,0.01694476]
[1742791257677,0.1153206,86713.0,86712.0,0.01894476]
[1742791257882,0.1153206,86713.0,86712.0,0.13426666]
[1742791258088,0.1153206,86713.0,86712.0,0.13926666]
[1742791259079,0.1153206,86713.0,86712.0,0.02394476]
[1742791259285,0.23064422,86713.0,86712.0,0.02210476]
[1742791259486,0.23064422,86713.0,86712.0,0.13742666]
[1742791259686,0.23064422,86713.0,86712.0,0.1241619]
[1742791259995,0.23064422,86713.0,86712.0,0.1191619]
[1742791260292,0.1778181,86717.0,86712.0,0.1191619]
[1742791260293,1e-07,86725.0,86724.0,0.115306]
[1742791260594,0.0004,86744.0,86743.0,0.1152807]
[1742791260896,0.0004,86744.0,86743.0,0.13217167]
[1742791261486,0.0004,86744.0,86743.0,0.19447167]
[1742791263889,0.0014,86744.0,86743.0,0.19447167]
[1742791265995,0.0014,86744.0,86743.0,0.19447043]
[1742791269091,0.0014,86744.0,86743.0,0.21862462]
[1742791269293,8e-05,86747.0,86746.0,0.1152767]
[1742791269495,0.000173,86752.0,86751.0,0.1152701]
[1742791269797,0.000173,86752.0,86751.0,0.1170701]
[1742791270596,0.0004,86760.0,86759.0,0.1152595]
[1742791270793,0.0004,86760.0,86759.0,0.1170195]
[1742791271190,0.0004,86760.0,86759.0,0.1788195]
[1742791271490,0.0004,86760.0,86759.0,0.19376637]
[1742791272202,0.0306,86760.0,86759.0,0.19376637]
[1742791272396,0.0326,86760.0,86759.0,0.19376637]
[1742791273097,0.0326,86760.0,86759.0,0.07850687]
[1742791273098,0.1478581,86760.0,86759.0,0.07850687]
[1742791273297,0.1478581,86760.0,86759.0,0.19376637]
[1742791273504,0.0326,86760.0,86759.0,0.19376637]
[1742791274590,0.0637,86760.0,86759.0,0.19376637]
[1742791275196,0.0637,86760.0,86759.0,0.1788195]
[1742791282605,0.1789581,86760.0,86759.0,0.1788195]
[1742791283110,0.0637,86760.0,86759.0,0.1788195]
[1742791285114,8e-05,86762.0,86761.0,0.1152568]
[1742791285313,0.00017289,86768.0,86761.0,0.1152568]
[1742791285314,0.00017289,86768.0,86767.0,0.1152488]
[1742791285517,0.00017289,86768.0,86767.0,0.1170488]
[1742791285907,0.00017289,86768.0,86767.0,0.19439893]
[1742791286708,0.00017289,86768.0,86767.0,0.1793488]
[1742791287917,0.00317289,86768.0,86767.0,0.1793488]
[1742791288311,8e-05,86771.0,86770.0,0.1152448]
[1742791288612,0.0625,86775.0,86774.0,0.1152395]
[1742791288809,0.0625,86775.0,86774.0,0.1169995]
[1742791289215,0.0625,86775.0,86774.0,0.4777995]
[1742791290015,0.0625,86775.0,86774.0,0.49286236]
[1742791291924,0.0625,86775.0,86774.0,0.52606236]
[1742791292711,1e-07,86776.0,86775.0,0.1152382]
[1742791292917,0.0575971,86809.0,86775.0,0.1152382]
[1742791292918,0.00017289,86783.0,86782.0,0.1152289]
[1742791293228,0.1188,86803.0,86791.0,0.115217]
[1742791293720,0.1188,86803.0,86791.0,0.116977]
[1742791293932,8e-05,86797.0,86791.0,0.116977]
[1742791294237,0.1152126,86795.0,86791.0,0.180477]
[1742791294428,0.1156156,86792.0,86791.0,0.180477]
[1742791295323,0.1156156,86792.0,86791.0,0.00176]
[1742791295721,0.1156156,86792.0,86791.0,0.116977]
[1742791296524,0.1805156,86792.0,86791.0,0.116977]
[1742791296720,0.1805156,86792.0,86791.0,0.00176]
[1742791296923,0.54131865,86792.0,86783.0,0.00017289]
[1742791297122,0.1152382,86775.0,86769.0,0.1152452]
[1742791297318,0.64131865,86792.0,86764.0,0.3608]
[1742791297319,0.11856,86779.0,86778.0,0.1152342]
[1742791297524,0.0632,86781.0,86780.0,0.1152316]
[1742791297723,0.39494001,86792.0,86791.0,0.115217]
[1742791298034,0.39618002,86792.0,86791.0,0.116457]
[1742791298231,0.03414001,86792.0,86791.0,0.116457]
[1742791298626,0.0329,86792.0,86791.0,0.147557]
[1742791298822,0.0329,86792.0,86791.0,0.16100379]
[1742791299031,0.0329,86792.0,86791.0,0.19400379]
[1742791300336,0.1481156,86792.0,86791.0,0.01468679]
[1742791300637,0.14811865,86792.0,86783.0,0.00017289]
[1742791300937,0.0576095,86790.0,86789.0,0.1152196]
[1742791301136,0.0576098,86789.0,86788.0,0.1152209]
[1742791301332,0.0576098,86789.0,86787.0,0.1152212]
[1742791301333,0.1152209,86788.0,86787.0,0.1152212]
[1742791301537,0.064,86789.0,86784.0,0.0644]
[1742791301735,0.1152249,86785.0,86784.0,0.0644]
[1742791301937,0.1152249,86785.0,86784.0,0.01479755]
[1742791302733,0.1792249,86785.0,86784.0,0.01479755]
[1742791303229,0.064,86785.0,86784.0,0.13102385]
[1742791303440,0.064,86785.0,86784.0,0.19542385]
[1742791303738,0.064,86785.0,86784.0,0.19442385]
[1742791303938,0.06460001,86785.0,86784.0,0.19566385]
[1742791304435,0.06460001,86785.0,86784.0,0.1838663]
[1742791304637,0.4248,86785.0,86784.0,0.06864]
[1742791304937,0.1799049,86785.0,86784.0,0.1826263]
[1742791305139,0.1799049,86785.0,86784.0,0.1808663]
[1742791305335,0.1799049,86785.0,86784.0,0.1828663]
[1742791305744,0.1799049,86785.0,86784.0,0.00324]
[1742791305934,0.1799049,86785.0,86784.0,0.13314411]
[1742791306238,0.1799049,86785.0,86784.0,0.01791781]
[1742791307728,0.1799049,86785.0,86784.0,0.01667781]
[1742791307933,0.1799049,86785.0,86784.0,0.01791781]
[1742791308144,0.1799049,86785.0,86784.0,0.01784962]
[1742791308340,0.1799049,86785.0,86784.0,0.13307592]
[1742791308531,0.1799049,86785.0,86784.0,0.04984962]
[1742791308732,0.1799049,86785.0,86784.0,0.16507592]
[1742791308930,0.1799049,86785.0,86784.0,0.04984962]
[1742791309745,0.18993723,86785.0,86784.0,0.16507592]
[1742791310133,0.18993723,86785.0,86784.0,0.04984962]
[1742791310334,0.18993723,86785.0,86784.0,0.16507592]
[1742791310633,0.1152382,86775.0,86770.0,0.0576224]
[1742791310838,0.1160782,86775.0,86774.0,0.36164]
[1742791311442,0.1795782,86775.0,86774.0,0.36164]
[1742791312144,0.1795782,86775.0,86774.0,0.4768795]
[1742791312946,0.1795782,86775.0,86774.0,0.4788795]
[1742791313743,0.1795782,86775.0,86774.0,0.5473795]
[1742791318449,0.1795782,86775.0,86774.0,0.5453795]
[1742791318849,0.06434,86775.0,86774.0,0.5453795]
[1742791319247,0.06434,86775.0,86774.0,0.5433795]
[1742791319655,0.14936,86779.0,86778.0,0.1152342]
[1742791319859,0.14936,86779.0,86778.0,0.1160742]
[1742791320147,0.14996001,86779.0,86778.0,0.1160742]
[1742791320353,0.14996001,86779.0,86778.0,0.1768742]
[1742791320953,0.14996001,86779.0,86778.0,0.1778742]
[1742791321251,0.18156001,86779.0,86778.0,0.1778742]
[1742791322157,0.29679291,86779.0,86778.0,0.1778742]
[1742791323157,0.18156001,86779.0,86778.0,0.1778742]
[1742791324862,0.03220001,86779.0,86778.0,0.1778742]
[1742791325162,0.06270001,86779.0,86778.0,0.1778742]
[1742791325847,0.00060001,86779.0,86778.0,0.1778742]
[1742791326053,8e-05,86780.0,86779.0,0.1152329]
[1742791326452,8e-05,86780.0,86779.0,0.2117329]
[1742791326653,0.00092,86780.0,86779.0,0.2125729]
[1742791327355,0.00092,86780.0,86779.0,0.2135729]
[1742791327554,0.03402,86780.0,86779.0,0.2135729]
[1742791328454,0.06602,86780.0,86779.0,0.22853091]
[1742791331555,0.06602,86780.0,86779.0,0.2527662]
[1742791333560,0.06602,86780.0,86779.0,0.22853091]
[1742791334257,0.00092,86780.0,86779.0,0.22853091]
[1742791334659,0.00084,86780.0,86779.0,0.22853091]
[1742791335464,0.00084,86780.0,86779.0,0.25276858]
[1742791336769,0.00084,86780.0,86779.0,0.22853091]
[1742791337166,8e-05,86781.0,86780.0,0.1152316]
[1742791337370,8e-05,86781.0,86780.0,0.1161516]
[1742791337572,8e-05,86781.0,86780.0,0.19250961]
[1742791338171,0.00092,86781.0,86780.0,0.19250961]
[1742791338971,0.00092,86781.0,86780.0,0.21673596]
[1742791339565,0.00092,86781.0,86780.0,0.19350961]
[1742791341375,0.00092,86781.0,86780.0,0.21790123]
[1742791341861,0.00092,86781.0,86780.0,0.19350961]
[1742791343373,0.00092,86781.0,86780.0,0.21788356]
[1742791346379,0.00092,86781.0,86780.0,0.23393678]
[1742791347471,0.00092,86781.0,86780.0,0.23395282]
[1742791348874,0.00092,86781.0,86780.0,0.21788356]
[1742791349178,0.00092,86781.0,86780.0,0.23396156]
[1742791350879,0.00092,86781.0,86780.0,0.21788356]
[1742791353473,0.00092,86781.0,86780.0,0.15648356]
[1742791353474,0.1161502,86781.0,86780.0,0.15648356]
[1742791354292,0.1797502,86781.0,86780.0,0.15648356]
[1742791354578,0.06452,86781.0,86780.0,0.15648356]
[1742791355176,0.06452,86781.0,86780.0,0.22078356]
[1742791355881,0.0576118,86786.0,86780.0,0.22078356]
[1742791355882,0.00017289,86800.0,86791.0,0.115217]
[1742791356076,0.00017289,86800.0,86793.0,0.0576069]
[1742791356290,0.00017289,86800.0,86799.0,0.4760063]
[1742791356475,0.03177289,86800.0,86799.0,0.49313036]
[1742791356782,0.03177289,86800.0,86799.0,0.53246232]
[1742791357280,0.03177289,86800.0,86799.0,0.59716232]
[1742791357484,0.03177289,86800.0,86799.0,0.58115826]
[1742791357871,0.03377289,86800.0,86799.0,0.59713221]
[1742791358487,0.03377289,86800.0,86799.0,0.58115826]
[1742791359080,8e-05,86805.0,86804.0,0.1151997]
[1742791359282,0.0004,86808.0,86807.0,0.1151957]
[1742791359472,0.00152001,86808.0,86807.0,0.15564766]
[1742791360078,0.00152001,86808.0,86807.0,0.18674766]
[1742791361178,0.00152001,86808.0,86807.0,0.1474157]
[1742791363182,0.00152001,86808.0,86807.0,0.16222917]
[1742791365488,0.11671441,86808.0,86807.0,0.01593347]
[1742791365695,0.11671742,86808.0,86807.0,0.13000917]
[1742791365891,0.11671742,86808.0,86807.0,0.13112917]
[1742791366086,0.00152001,86808.0,86807.0,0.19352917]
[1742791366985,0.00152001,86808.0,86807.0,0.1787157]
[1742791367185,0.00152001,86808.0,86807.0,0.19349382]
[1742791367390,0.0004,86808.0,86807.0,0.19349382]
[1742791371792,0.0004,86808.0,86807.0,0.1787157]
[1742791373196,1e-07,86824.0,86823.0,0.1151745]
[1742791373493,1e-07,86824.0,86823.0,0.4771745]
[1742791374395,1e-07,86824.0,86823.0,0.58277021]
[1742791374993,1e-07,86824.0,86823.0,0.94357021]
[1742791375189,0.0301,86837.0,86836.0,0.1151573]
[1742791375497,0.11984,86859.0,86839.0,0.1151533]
[1742791375498,0.01060934,86844.0,86839.0,0.1151533]
[1742791375695,0.01060934,86844.0,86839.0,0.1162733]
[1742791375893,0.0617,86843.0,86839.0,0.16383192]
[1742791376091,0.0617,86843.0,86839.0,0.19513192]
[1742791376286,0.033,86842.0,86839.0,0.19513192]
[1742791376489,0.0579549,86872.0,86847.0,0.1151427]
[1742791376490,0.00017276,86848.0,86847.0,0.1151427]
[1742791376692,0.00017276,86848.0,86847.0,0.1162627]
[1742791378395,0.0004,86856.0,86855.0,0.1151321]
[1742791378590,0.0004,86856.0,86855.0,0.1162521]
[1742791379593,1e-07,86856.0,86855.0,0.1162521]
[1742791380191,1e-07,86856.0,86855.0,0.1313037]
[1742791380491,1e-07,86856.0,86855.0,0.14177046]
[1742791381000,1e-07,86856.0,86855.0,0.26437046]
[1742791382192,1e-07,86856.0,86855.0,0.26637046]
[1742791383001,1e-07,86856.0,86855.0,0.27137046]
[1742791383588,1e-07,86856.0,86855.0,0.26937046]
[1742791383793,1e-07,86856.0,86855.0,0.27037046]
[1742791384389,1e-07,86856.0,86855.0,0.26537046]
[1742791384587,1e-07,86856.0,86855.0,0.26937046]
[1742791384998,1e-07,86856.0,86855.0,0.14677046]
[1742791385202,1e-07,86856.0,86855.0,0.26929046]
[1742791385397,1e-07,86856.0,86855.0,0.27029046]
[1742791386006,1e-07,86856.0,86855.0,0.30025196]
[1742791386396,1e-07,86856.0,86855.0,0.29625196]
[1742791386595,1e-07,86856.0,86855.0,0.30125196]
[1742791387002,1e-07,86856.0,86855.0,0.31385883]
[1742791387198,1e-07,86856.0,86855.0,0.30885883]
[1742791387403,1e-07,86856.0,86855.0,0.31285883]
[1742791387599,1e-07,86856.0,86855.0,0.31185883]
[1742791387811,1e-07,86856.0,86855.0,0.29925196]
[1742791388108,1e-07,86856.0,86855.0,0.31185699]
[1742791388401,1e-07,86859.0,86858.0,0.1151281]
[1742791388605,0.00011388,86864.0,86863.0,0.1151215]
[1742791388795,0.0004,86872.0,86871.0,0.1151109]
[1742791388993,0.0004,86872.0,86871.0,0.63115487]
[1742791389206,0.0004,86872.0,86871.0,0.67055579]
[1742791389903,0.0004,86872.0,86871.0,0.67058861]
[1742791390408,0.0004,86872.0,86871.0,0.67158861]
[1742791390704,0.0004,86872.0,86871.0,0.54614861]
[1742791390900,0.11662951,86872.0,86871.0,0.51743182]
[1742791391103,0.11662951,86872.0,86871.0,0.54833182]
[1742791391604,0.00152001,86872.0,86871.0,0.54833182]
[1742791391808,0.00152001,86872.0,86871.0,0.58003182]
[1742791392003,0.0004,86872.0,86871.0,0.5556825]
[1742791394014,0.1262,86884.0,86881.0,0.1150974]
[1742791394203,0.1262,86884.0,86882.0,0.0317]
[1742791394405,0.11511255,86883.0,86882.0,0.0317]
[1742791395007,0.11623256,86883.0,86882.0,0.03286]
[1742791395202,0.11623256,86883.0,86872.0,0.0575541]
[1742791395203,0.11511255,86883.0,86863.0,0.36097276]
[1742791395509,0.3608,86876.0,86872.0,0.0312]
[1742791395709,0.12584,86875.0,86874.0,0.1151069]
[1742791396416,0.12584,86875.0,86874.0,0.1463069]
[1742791396913,0.12584,86875.0,86874.0,0.16133579]
[1742791397310,0.0866,86876.0,86875.0,0.1151056]
[1742791397511,8e-05,86892.0,86887.0,0.1150897]
[1742791397915,8e-05,86892.0,86887.0,0.17276268]
[1742791398210,0.11550857,86888.0,86887.0,0.17276268]
[1742791398408,0.11550857,86888.0,86887.0,0.05767298]
[1742791398611,0.11550857,86888.0,86887.0,0.09700189]
[1742791398905,0.20080857,86888.0,86887.0,0.18661861]
[1742791399520,0.20080857,86888.0,86887.0,0.23626391]
[1742791399716,0.20192858,86888.0,86887.0,0.23738391]
[1742791400016,0.20192858,86888.0,86887.0,0.22073861]
[1742791400200,0.20192858,86888.0,86887.0,0.19643859]
[1742791400402,0.20192858,86888.0,86887.0,0.01614889]
[1742791400610,0.20192858,86888.0,86887.0,0.01502889]
[1742791401006,0.20192858,86888.0,86887.0,0.01614889]
[1742791401411,0.20192858,86888.0,86887.0,0.13123859]
[1742791401614,0.08682001,86888.0,86887.0,0.13123859]
[1742791401910,0.08682001,86888.0,86887.0,0.1562549]
[1742791402112,0.06432001,86888.0,86887.0,0.1883549]
[1742791402512,0.06432001,86888.0,86887.0,0.20119655]
[1742791403220,0.06432001,86888.0,86887.0,0.08610685]
[1742791403515,0.08682001,86888.0,86887.0,0.08610685]
[1742791403817,0.20191136,86888.0,86887.0,0.08611633]
[1742791404020,0.20191136,86888.0,86887.0,0.0732652]
[1742791404226,0.31699966,86888.0,86887.0,0.02889111]
[1742791405917,0.31699966,86888.0,86887.0,0.02888994]
[1742791409024,0.20191136,86888.0,86887.0,0.02888994]
[1742791409616,0.31699966,86888.0,86887.0,0.02888994]
[1742791409821,0.31699966,86888.0,86887.0,0.06198994]
[1742791410022,0.31699966,86888.0,86887.0,0.08636365]
[1742791412014,0.31699966,86888.0,86887.0,0.0736226]
[1742791413422,0.31699966,86888.0,86887.0,0.04924889]
[1742791414230,0.31699966,86888.0,86875.0,0.4183526]
[1742791414231,0.1150976,86881.0,86880.0,0.34183813]
[1742791414418,0.6168176,86881.0,86880.0,0.34259813]
[1742791414924,0.73190895,86881.0,86880.0,0.34183813]
[1742791415120,0.78490895,86881.0,86880.0,0.34183813]
[1742791416528,0.1151022,86878.0,86876.0,0.0306]
[1742791416825,0.0854,86877.0,86876.0,0.0306]
[1742791417220,0.20050062,86877.0,86876.0,0.0306]
[1742791419831,0.20126062,86877.0,86876.0,0.03136]
[1742791420327,0.20126062,86877.0,86876.0,0.0306]
[1742791421230,0.31636352,86877.0,86876.0,0.0306]
[1742791421430,0.31636352,86877.0,86876.0,0.0314]
[1742791421929,0.31636352,86877.0,86876.0,0.0306]
[1742791422127,0.11586062,86877.0,86876.0,0.0306]
[1742791422321,0.11586062,86877.0,86876.0,0.05473655]
[1742791422624,0.11586062,86877.0,86876.0,0.05553655]
[1742791423025,0.11586062,86877.0,86876.0,0.0314]
[1742791425028,0.23096352,86877.0,86876.0,0.0314]
[1742791425923,0.23096352,86877.0,86876.0,0.0306]
[1742791426834,0.1151201,86864.0,86858.0,0.20514595]
[1742791427029,0.9756401,86864.0,86863.0,0.00101276]
[1742791427334,0.9756401,86864.0,86863.0,0.00093276]
[1742791427625,1.09076325,86864.0,86863.0,0.00017276]
[1742791427831,1.15581856,86864.0,86863.0,0.00017276]
[1742791428031,1.15581856,86864.0,86863.0,0.00317276]
[1742791428422,0.79501856,86864.0,86863.0,0.00317276]
[1742791428623,0.79501856,86864.0,86863.0,0.00393276]
[1742791428823,0.79501856,86864.0,86863.0,0.00493276]
[1742791429024,0.77251856,86864.0,86863.0,0.00493276]
[1742791429924,0.77251856,86864.0,86863.0,0.00417276]
[1742791430525,0.79501856,86864.0,86863.0,0.00417276]
[1742791431131,0.77251856,86864.0,86863.0,0.00417276]
[1742791432239,0.12653846,86864.0,86863.0,0.11929426]
[1742791432434,0.26273846,86864.0,86863.0,0.12013426]
[1742791432630,0.26273846,86864.0,86863.0,0.00501276]
[1742791432631,0.26353846,86864.0,86863.0,0.00501276]
[1742791433041,0.26353846,86864.0,86863.0,0.12013426]
[1742791433533,0.01145531,86864.0,86863.0,0.12013426]
[1742791433733,0.01065531,86864.0,86863.0,0.12013426]
[1742791433929,8e-05,86865.0,86864.0,0.1151201]
[1742791434131,0.00092,86865.0,86864.0,0.1799601]
[1742791434531,8e-05,86865.0,86864.0,0.1799601]
[1742791434739,0.00076,86865.0,86864.0,0.1799601]
[1742791434933,0.00076,86865.0,86864.0,0.19495221]
[1742791435129,0.0112797,86865.0,86864.0,0.19495221]
[1742791435932,0.0112797,86865.0,86864.0,0.21995221]
[1742791436733,0.0112797,86865.0,86864.0,0.22295221]
[1742791438933,0.136,86872.0,86864.0,0.10783211]
[1742791439132,0.13676,86872.0,86871.0,0.1151109]
[1742791439328,0.13676,86872.0,86871.0,0.12781408]
[1742791439531,0.13676,86872.0,86871.0,0.12857408]
[1742791440038,0.13608,86883.0,86882.0,0.1150963]
[1742791440337,0.13668001,86883.0,86882.0,0.0137825]